lending/lending_fUSD_20240206
["ID","MTS","AMOUNT","RATE_DAILY","PERIOD"]
[313368822,1707237051858,-270.1052536,0.0005,4]
[313368823,1707237051867,-2965.25127649,0.0005,4]
[313368824,1707237051877,-23663.25263282,0.0005,6]
[313368826,1707237051887,-2296.8747309,0.0005,5]
[313368827,1707237051896,-5000.0,0.0005,30]
[313368829,1707237051906,-5000.0,0.0005,30]
[313368831,1707237051916,-5000.0,0.0005,30]
[313368833,1707237051926,-5000.0,0.0005,30]
[313368836,1707237051937,-2000000.0,0.0005,30]
[313368838,1707237051947,-2500.0,0.0005,120]
[313368839,1707237051956,-155.0,0.0005,120]
[313368841,1707237051966,-6000.0,0.0005,30]
[313368843,1707237051977,-290.64177572,0.0005,30]
[313368845,1707237051987,-300.0,0.0005,40]
[313368847,1707237051996,-300.0,0.0005,50]
[313368849,1707237052006,-300.0,0.0005,60]
[313368851,1707237052015,-998.8001991,0.0005,30]
[313368853,1707237052025,-300.0,0.0005,70]
[313368855,1707237052035,-300.0,0.0005,80]
[313368857,1707237052044,-2500.0,0.0005,61]
[313368868,1707237052140,-300.0,0.0005,90]
[313368870,1707237052151,-300.0,0.0005,100]
[313368872,1707237052161,-300.0,0.0005,110]
[313368874,1707237052171,-300.0,0.0005,120]
[313368876,1707237052181,-300.0,0.0005,55]
[313368878,1707237052190,-500000.0,0.0005,120]
[313368880,1707237052200,-59272.63832108,0.0005,90]
[313368882,1707237052209,-2252.064573,0.0005,5]
[313368885,1707237052219,-10254.58632815,0.0005,5]
[313368887,1707237052232,-56549.0,0.0005,13]
[313368889,1707237052241,-200.0,0.0005,27]
[313368891,1707237052250,-217.226062,0.0005,31]
[313368893,1707237052260,-237.488961,0.0005,31]
[313368895,1707237052268,-1960.287021,0.0005,31]
[313368896,1707237052278,-1982.997786,0.0005,31]
[313368899,1707237052287,-729.4929779,0.0005,60]
[313368901,1707237052298,-306.82,0.0005,2]
[313368903,1707237052307,-300.0,0.0005,27]
[313368905,1707237052317,-153.604113,0.0005,27]
[313368907,1707237052326,-151.55628475,0.00050065,60]
[313368909,1707237052335,-248.12327757,0.00050068,60]
[313368911,1707237052345,-815.98137294,0.00050136,7]
[313368913,1707237052354,-500.0,0.00050136,2]
[313368915,1707237052363,-500.0,0.00050136,60]
[313368916,1707237052373,-500.0,0.00050136,60]
[313368918,1707237052382,-744.23,0.00050136,30]
[313368920,1707237052391,-500.0,0.00050136,2]
[313368922,1707237052400,-500.0,0.00050136,60]
[313368924,1707237052409,-500.0,0.00050136,7]
[313368926,1707237052418,-500.0,0.00050136,60]
[313368928,1707237052427,-500.0,0.00050136,60]
[313368930,1707237052436,-441.19542684,0.00050136,60]
[313368932,1707237052445,-500.0,0.00050136,60]
[313368934,1707237052454,-500.0,0.00050136,60]
[313368936,1707237052463,-500.0,0.00050136,60]
[313368938,1707237052472,-177.55731443,0.00050136,60]
[313368940,1707237052484,-501.89296861,0.00050136,60]
[313368942,1707237052493,-500.0,0.00050136,30]
[313368944,1707237052502,-249.64838734,0.00050136,60]
[313368946,1707237052512,-500.0,0.00050136,60]
[313368949,1707237052522,-313.63,0.00050136,60]
[313368950,1707237052532,-500.0,0.00050136,60]
[313368951,1707237052541,-500.0,0.00050136,60]
[313368952,1707237052550,-505.4874166,0.00050136,60]
[313368953,1707237052559,-500.0,0.00050136,60]
[313368954,1707237052569,-500.0,0.00050136,60]
[313368955,1707237052578,-500.0,0.00050136,60]
[313368956,1707237052588,-500.0,0.00050136,60]
[313368957,1707237052599,-500.0,0.00050136,2]
[313368958,1707237052608,-500.0,0.00050136,60]
[313368959,1707237052617,-500.0,0.00050136,60]
[313368960,1707237052626,-500.0,0.00050136,60]
[313368962,1707237052636,-501.75249951,0.00050136,2]
[313368964,1707237052645,-585.00428923,0.00050136,60]
[313368966,1707237052654,-500.0,0.00050136,60]
[313368967,1707237052663,-500.0,0.00050136,60]
[313368969,1707237052672,-310.72482338,0.00050136,60]
[313368971,1707237052681,-886.51,0.00050136,60]
[313368973,1707237052690,-500.0,0.00050136,60]
[313368974,1707237052699,-500.0,0.00050136,60]
[313368976,1707237052708,-500.0,0.00050136,60]
[313368977,1707237052718,-549.04160785,0.00050136,60]
[313368978,1707237052727,-500.0,0.00050136,60]
[313368979,1707237052738,-500.0,0.00050136,60]
[313368981,1707237052747,-171.52151315,0.00050136,60]
[313368982,1707237052756,-591.25,0.00050136,7]
[313368983,1707237052766,-500.0,0.00050136,2]
[313368984,1707237052775,-500.0,0.00050136,60]
[313368985,1707237052784,-500.0,0.00050136,10]
[313368986,1707237052793,-500.0,0.00050136,60]
[313368987,1707237052802,-588.88345661,0.00050136,60]
[313368988,1707237052813,-500.0,0.00050136,60]
[313368989,1707237052822,-232.26611634,0.00050136,60]
[313368990,1707237052832,-353.53234033,0.00050136,60]
[313368991,1707237052841,-500.0,0.00050136,60]
[313368992,1707237052851,-500.0,0.00050136,60]
[313368993,1707237052860,-554.26815297,0.00050136,60]
[313368994,1707237052871,-500.0,0.00050136,60]
[313368995,1707237052880,-500.0,0.00050136,60]
[313368997,1707237052889,-207.26945719,0.00050136,60]
[313368999,1707237052898,-500.0,0.00050136,60]
[313369001,1707237052907,-468.54280631,0.00050136,60]
[313369002,1707237052917,-500.0,0.00050136,60]
[313369003,1707237052926,-500.0,0.00050136,60]
[313369004,1707237052935,-500.0,0.00050136,60]
[313369005,1707237052944,-500.0,0.00050136,60]
[313369006,1707237052953,-500.0,0.00050136,60]
[313369007,1707237052962,-1000.0,0.00050136,7]
[313369008,1707237052972,-500.0,0.00050136,60]
[313369009,1707237052983,-500.0,0.00050136,60]
[313369010,1707237052992,-161.25202488,0.00050136,60]
[313369011,1707237053001,-500.0,0.00050136,60]
[313369012,1707237053010,-1138.31,0.00050136,60]
[313369013,1707237053019,-500.0,0.00050136,60]
[313369014,1707237053029,-500.0,0.00050136,60]
[313369015,1707237053038,-500.0,0.00050136,60]
[313369017,1707237053047,-546.38,0.00050136,60]
[313369019,1707237053057,-500.0,0.00050136,60]
[313369021,1707237053066,-566.17677007,0.00050136,60]
[313369022,1707237053075,-757.65,0.00050136,60]
[313369024,1707237053084,-500.0,0.00050136,60]
[313369025,1707237053093,-430.65983494,0.00050136,60]
[313369026,1707237053104,-500.0,0.00050136,2]
[313369027,1707237053114,-500.0,0.00050136,10]
[313369028,1707237053123,-847.43,0.00050136,60]
[313369029,1707237053132,-500.0,0.00050136,60]
[313369030,1707237053141,-629.36239809,0.00050136,60]
[313369032,1707237053151,-500.0,0.00050136,60]
[313369034,1707237053160,-862.8172729,0.00050136,60]
[313369036,1707237053169,-500.0,0.00050136,28]
[313369038,1707237053177,-504.01549632,0.00050136,60]
[313369040,1707237053186,-500.0,0.00050136,60]
[313369042,1707237053195,-500.0,0.00050136,60]
[313369044,1707237053204,-500.0,0.00050136,60]
[313369046,1707237053213,-568.53206061,0.00050136,60]
[313369048,1707237053222,-652.24,0.00050136,60]
[313369050,1707237053233,-588.71,0.00050136,60]
[313369052,1707237053241,-500.0,0.00050136,60]
[313369054,1707237053250,-500.0,0.00050136,60]
[313369056,1707237053260,-573.10286175,0.00050136,60]
[313369059,1707237053270,-500.0,0.00050136,60]
[313369061,1707237053279,-500.0,0.00050136,60]
[313369063,1707237053288,-500.0,0.00050136,60]
[313369065,1707237053297,-414.88446824,0.00050136,60]
[313369067,1707237053306,-500.0,0.00050136,60]
[313369069,1707237053315,-500.0,0.00050136,60]
[313369070,1707237053324,-500.0,0.00050136,60]
[313369073,1707237053333,-500.0,0.00050136,60]
[313369074,1707237053342,-500.0,0.00050136,60]
[313369077,1707237053351,-500.0,0.00050136,60]
[313369079,1707237053361,-1000.0,0.00050136,7]
[313369080,1707237053370,-500.0,0.00050136,60]
[313369083,1707237053379,-500.0,0.00050136,60]
[313369085,1707237053389,-500.0,0.00050136,60]
[313369087,1707237053398,-500.0,0.00050136,60]
[313369089,1707237053407,-500.0,0.00050136,60]
[313369091,1707237053416,-500.0,0.00050136,60]
[313369093,1707237053425,-684.92,0.00050136,7]
[313369094,1707237053434,-500.0,0.00050136,60]
[313369097,1707237053443,-500.0,0.00050136,60]
[313369098,1707237053453,-500.0,0.00050136,60]
[313369100,1707237053462,-500.0,0.00050136,60]
[313369102,1707237053471,-500.0,0.00050136,60]
[313369104,1707237053481,-500.0,0.00050136,60]
[313369107,1707237053491,-500.0,0.00050136,60]
[313369109,1707237053500,-500.0,0.00050136,60]
[313369110,1707237053510,-504.09741462,0.00050136,60]
[313369113,1707237053519,-500.0,0.00050136,60]
[313369115,1707237053528,-500.0,0.00050136,60]
[313369117,1707237053537,-500.0,0.00050136,60]
[313369119,1707237053546,-500.0,0.00050136,60]
[313369121,1707237053555,-500.0,0.00050136,60]
[313369122,1707237053565,-2236.7,0.00050136,60]
[313369125,1707237053574,-500.0,0.00050136,60]
[313369127,1707237053584,-500.0,0.00050136,60]
[313369129,1707237053593,-500.0,0.00050136,60]
[313369130,1707237053603,-965.48,0.00050136,60]
[313369132,1707237053612,-500.0,0.00050136,60]
[313369134,1707237053621,-500.0,0.00050136,60]
[313369136,1707237053630,-500.0,0.00050136,7]
[313369138,1707237053639,-213.75108226,0.00050136,60]
[313369141,1707237053649,-500.0,0.00050136,60]
[313369143,1707237053658,-429.99639302,0.00050136,60]
[313369144,1707237053667,-500.0,0.00050136,60]
[313369145,1707237053676,-500.0,0.00050136,60]
[313369146,1707237053685,-500.0,0.00050136,60]
[313369147,1707237053695,-3061.75,0.00050136,5]
[313369148,1707237053704,-500.0,0.00050136,7]
[313369149,1707237053714,-500.0,0.00050136,60]
[313369151,1707237053724,-975.61,0.00050136,60]
[313369153,1707237053734,-527.05134025,0.00050136,60]
[313369155,1707237053744,-500.0,0.00050136,60]
[313369157,1707237053756,-500.0,0.00050136,60]
[313369159,1707237053766,-500.0,0.00050136,60]
[313369161,1707237053775,-500.0,0.00050136,60]
[313369163,1707237053784,-691.91,0.00050136,60]
[313369174,1707237053869,-500.0,0.00050136,60]
[313369176,1707237053879,-500.0,0.00050136,60]
[313369178,1707237053887,-500.0,0.00050136,60]
[313369180,1707237053898,-500.0,0.00050136,60]
[313369182,1707237053907,-500.0,0.00050136,60]
[313369184,1707237053916,-500.0,0.00050136,60]
[313369186,1707237053925,-500.0,0.00050136,60]
[313369188,1707237053934,-643.59,0.00050136,60]
[313369190,1707237053943,-500.0,0.00050136,60]
[313369192,1707237053952,-1684.4,0.00050136,60]
[313369194,1707237053961,-500.0,0.00050136,60]
[313369196,1707237053970,-500.0,0.00050136,60]
[313369198,1707237053979,-500.0,0.00050136,60]
[313369200,1707237053988,-500.0,0.00050136,60]
[313369202,1707237053998,-500.0,0.00050136,60]
[313369204,1707237054008,-500.0,0.00050136,60]
[313369206,1707237054017,-500.0,0.00050136,60]
[313369208,1707237054026,-611.71748539,0.00050136,60]
[313369210,1707237054035,-500.0,0.00050136,60]
[313369211,1707237054045,-500.0,0.00050136,60]
[313369214,1707237054054,-500.0,0.00050136,60]
[313369216,1707237054064,-500.0,0.00050136,60]
[313369217,1707237054073,-164.67098841,0.00050136,60]
[313369219,1707237054083,-500.0,0.00050136,60]
[313369222,1707237054092,-375.8622604,0.00050136,60]
[313369223,1707237054102,-500.0,0.00050136,60]
[313369225,1707237054111,-500.0,0.00050136,60]
[313369227,1707237054121,-500.0,0.00050136,60]
[313369229,1707237054130,-500.0,0.00050136,60]
[313369230,1707237054140,-500.0,0.00050136,60]
[313369232,1707237054149,-500.0,0.00050136,60]
[313369233,1707237054158,-500.0,0.00050136,60]
[313369235,1707237054167,-500.0,0.00050136,60]
[313369236,1707237054176,-500.0,0.00050136,60]
[313369238,1707237054186,-500.0,0.00050136,60]
[313369240,1707237054195,-549.19612911,0.00050136,60]
[313369241,1707237054204,-500.0,0.00050136,60]
[313369243,1707237054213,-500.0,0.00050136,60]
[313369244,1707237054222,-500.0,0.00050136,60]
[313369246,1707237054231,-500.0,0.00050136,60]
[313369247,1707237054240,-500.0,0.00050136,60]
[313369249,1707237054250,-171.24102249,0.00050136,60]
[313369250,1707237054259,-500.0,0.00050136,60]
[313369252,1707237054268,-500.0,0.00050136,60]
[313369254,1707237054278,-500.0,0.00050136,60]
[313369255,1707237054287,-500.0,0.00050136,60]
[313369257,1707237054296,-152.81079477,0.00050136,60]
[313369258,1707237054305,-500.0,0.00050136,60]
[313369260,1707237054314,-629.24472716,0.00050136,60]
[313369261,1707237054323,-500.0,0.00050136,60]
[313369263,1707237054332,-500.0,0.00050136,60]
[313369265,1707237054341,-500.0,0.00050136,60]
[313369266,1707237054350,-500.0,0.00050136,60]
[313369268,1707237054360,-500.0,0.00050136,60]
[313369269,1707237054369,-500.0,0.00050136,60]
[313369271,1707237054378,-578.1612076,0.00050136,60]
[313369273,1707237054387,-500.0,0.00050136,60]
[313369274,1707237054396,-500.0,0.00050136,60]
[313369276,1707237054406,-500.0,0.00050136,60]
[313369278,1707237054415,-500.0,0.00050136,60]
[313369279,1707237054424,-500.0,0.00050136,60]
[313369281,1707237054433,-1387.81,0.00050136,5]
[313369283,1707237054442,-500.0,0.00050136,60]
[313369284,1707237054451,-500.0,0.00050136,60]
[313369286,1707237054461,-508.60167003,0.00050136,60]
[313369288,1707237054470,-500.0,0.00050136,60]
[313369289,1707237054479,-489.87462659,0.00050136,60]
[313369291,1707237054488,-500.0,0.00050136,60]
[313369293,1707237054497,-500.0,0.00050136,60]
[313369294,1707237054506,-500.0,0.00050136,60]
[313369296,1707237054515,-558.81,0.00050136,60]
[313369298,1707237054524,-500.0,0.00050136,60]
[313369300,1707237054533,-500.0,0.00050136,60]
[313369302,1707237054543,-1000.0,0.00050136,7]
[313369304,1707237054552,-530.43,0.00050136,60]
[313369306,1707237054561,-500.0,0.00050136,60]
[313369308,1707237054570,-500.0,0.00050136,2]
[313369310,1707237054579,-500.0,0.00050136,60]
[313369312,1707237054588,-500.0,0.00050136,60]
[313369313,1707237054597,-500.0,0.00050136,60]
[313369315,1707237054606,-742.12,0.00050136,60]
[313369318,1707237054616,-500.0,0.00050136,60]
[313369319,1707237054625,-500.0,0.00050136,60]
[313369321,1707237054634,-500.0,0.00050136,60]
[313369323,1707237054644,-500.0,0.00050136,60]
[313369325,1707237054654,-500.0,0.00050136,60]
[313369327,1707237054663,-500.0,0.00050136,60]
[313369329,1707237054672,-1000.0,0.00050136,7]
[313369331,1707237054681,-500.0,0.00050136,60]
[313369333,1707237054691,-185.50050621,0.00050136,60]
[313369334,1707237054700,-497.0,0.00050136,2]
[313369335,1707237054709,-500.0,0.00050136,120]
[313369336,1707237054718,-265.233454,0.00050136,2]
[313369337,1707237054729,-500.0,0.00050136,2]
[313369338,1707237054739,-509.63587263,0.00050136,60]
[313369339,1707237054748,-500.0,0.00050136,60]
[313369340,1707237054756,-170.799197,0.00050148,30]
[313369341,1707237054766,-7250.86887257,0.0005015,26]
[313369342,1707237054775,-151.55628475,0.00050161,60]
[313369343,1707237054784,-500.0,0.00050164,14]
[313369344,1707237054793,-179.004606,0.00050178,30]
[313369345,1707237054803,-191.21826179,0.000502,120]
[313369346,1707237054812,-248.12327757,0.00050219,60]
[313369347,1707237054821,-500000.0,0.0005025,120]
[313369349,1707237054830,-151.0,0.0005025,14]
[313369350,1707237054839,-151.0,0.0005025,14]
[313369352,1707237054849,-151.0,0.0005025,14]
[313369354,1707237054858,-159.19594,0.0005025,14]
[313369356,1707237054869,-159.19594,0.0005025,14]
[313369358,1707237054878,-151.0,0.0005025,14]
[313369360,1707237054887,-151.0,0.0005025,14]
[313369362,1707237054897,-422.172516,0.0005025,14]
[313369364,1707237054906,-422.172516,0.0005025,14]
[313369366,1707237054915,-166.576814,0.0005025,14]
[313369368,1707237054924,-166.576814,0.0005025,14]
[313369370,1707237054934,-151.0,0.0005025,14]
[313369373,1707237054945,-3725.0,0.00050267,30]
[313369374,1707237054955,-150.0,0.00050299,10]
[313369376,1707237054965,-150.0,0.00050299,10]
[313369378,1707237054974,-500000.0,0.000503,120]
[313369380,1707237054985,-159.48608106,0.00050314,60]
[313369382,1707237054994,-151.47027557,0.00050314,60]
[313369384,1707237055004,-243.0,0.000504,40]
[313369386,1707237055013,-151.55628475,0.00050459,60]
[313369388,1707237055022,-10000.0,0.00050469,5]
[313369390,1707237055032,-150.0,0.00050499,10]
[313369392,1707237055040,-150.0,0.00050499,10]
[313369394,1707237055050,-552.8028478,0.000505,15]
[313369396,1707237055059,-374956.10216112,0.000505,10]
[313369398,1707237055068,-500000.0,0.000505,120]
[313369400,1707237055077,-200.0,0.000505,28]
[313369402,1707237055086,-151.0,0.000505,14]
[313369404,1707237055096,-151.0,0.000505,14]
[313369406,1707237055105,-172.087196,0.000505,14]
[313369408,1707237055115,-159.19594,0.000505,14]
[313369410,1707237055124,-159.19594,0.000505,14]
[313369412,1707237055134,-151.0,0.000505,14]
[313369414,1707237055143,-151.0,0.000505,14]
[313369416,1707237055153,-422.172516,0.000505,14]
[313369418,1707237055164,-422.172516,0.000505,14]
[313369420,1707237055174,-166.576814,0.000505,14]
[313369422,1707237055184,-166.576814,0.000505,14]
[313369424,1707237055193,-151.0,0.000505,14]
[313369426,1707237055202,-7636.15387366,0.000505,2]
[313369428,1707237055212,-248.12327757,0.00050534,60]
[313369430,1707237055221,-500.0,0.00050547,2]
[313369432,1707237055232,-500.0,0.00050547,60]
[313369434,1707237055241,-500.0,0.00050547,60]
[313369436,1707237055250,-744.23,0.00050547,30]
[313369438,1707237055259,-500.0,0.00050547,2]
[313369440,1707237055268,-500.0,0.00050547,60]
[313369442,1707237055277,-500.0,0.00050547,7]
[313369444,1707237055286,-500.0,0.00050547,60]
[313369446,1707237055295,-500.0,0.00050547,60]
[313369448,1707237055304,-236.66455774,0.00050547,60]
[313369450,1707237055312,-500.0,0.00050547,60]
[313369452,1707237055321,-304.81436866,0.00050547,60]
[313369454,1707237055330,-500.0,0.00050547,30]
[313369456,1707237055339,-500.0,0.00050547,60]
[313369458,1707237055348,-500.0,0.00050547,60]
[313369460,1707237055358,-500.0,0.00050547,60]
[313369470,1707237055433,-458.48756096,0.00050547,60]
[313369472,1707237055449,-500.0,0.00050547,60]
[313369474,1707237055458,-500.0,0.00050547,60]
[313369476,1707237055468,-500.0,0.00050547,60]
[313369478,1707237055478,-500.0,0.00050547,2]
[313369480,1707237055487,-500.0,0.00050547,60]
[313369482,1707237055495,-500.0,0.00050547,60]
[313369484,1707237055504,-270.65770941,0.00050547,60]
[313369486,1707237055513,-500.0,0.00050547,60]
[313369487,1707237055522,-313.25583375,0.00050547,60]
[313369489,1707237055532,-886.51,0.00050547,60]
[313369491,1707237055541,-326.42316263,0.00050547,60]
[313369493,1707237055550,-500.0,0.00050547,60]
[313369495,1707237055559,-199.83333506,0.00050547,60]
[313369497,1707237055568,-500.0,0.00050547,60]
[313369499,1707237055577,-500.0,0.00050547,60]
[313369501,1707237055586,-591.25,0.00050547,7]
[313369503,1707237055595,-500.0,0.00050547,2]
[313369505,1707237055604,-165.89011926,0.00050547,60]
[313369507,1707237055613,-500.0,0.00050547,10]
[313369509,1707237055622,-500.0,0.00050547,60]
[313369511,1707237055631,-151.38151003,0.00050547,60]
[313369513,1707237055640,-500.0,0.00050547,60]
[313369515,1707237055650,-381.56098094,0.00050547,60]
[313369517,1707237055660,-500.0,0.00050547,60]
[313369519,1707237055669,-560.83815237,0.00050547,60]
[313369521,1707237055678,-253.43670185,0.00050547,60]
[313369523,1707237055687,-500.0,0.00050547,60]
[313369525,1707237055697,-500.0,0.00050547,60]
[313369527,1707237055706,-500.0,0.00050547,60]
[313369530,1707237055715,-200.86158265,0.00050547,60]
[313369531,1707237055726,-500.0,0.00050547,60]
[313369533,1707237055737,-1000.0,0.00050547,7]
[313369535,1707237055746,-500.0,0.00050547,60]
[313369537,1707237055755,-500.0,0.00050547,60]
[313369539,1707237055764,-500.0,0.00050547,60]
[313369541,1707237055774,-1138.31,0.00050547,60]
[313369543,1707237055783,-500.0,0.00050547,60]
[313369545,1707237055792,-500.0,0.00050547,60]
[313369547,1707237055802,-500.0,0.00050547,60]
[313369549,1707237055811,-546.38,0.00050547,60]
[313369551,1707237055820,-500.0,0.00050547,60]
[313369553,1707237055829,-757.65,0.00050547,60]
[313369555,1707237055839,-493.82294608,0.00050547,60]
[313369557,1707237055848,-509.30532827,0.00050547,2]
[313369559,1707237055857,-500.0,0.00050547,10]
[313369561,1707237055866,-847.43,0.00050547,60]
[313369562,1707237055875,-500.0,0.00050547,60]
[313369563,1707237055884,-360.56473557,0.00050547,60]
[313369564,1707237055894,-187.02767487,0.00050547,28]
[313369565,1707237055904,-465.19011421,0.00050547,60]
[313369566,1707237055915,-500.0,0.00050547,60]
[313369567,1707237055924,-415.81787151,0.00050547,60]
[313369568,1707237055933,-652.24,0.00050547,60]
[313369569,1707237055943,-588.71,0.00050547,60]
[313369570,1707237055952,-500.0,0.00050547,60]
[313369571,1707237055961,-500.0,0.00050547,60]
[313369572,1707237055971,-500.0,0.00050547,60]
[313369573,1707237055982,-500.0,0.00050547,60]
[313369574,1707237055991,-500.0,0.00050547,60]
[313369575,1707237056001,-500.0,0.00050547,60]
[313369576,1707237056010,-500.0,0.00050547,60]
[313369577,1707237056020,-500.0,0.00050547,60]
[313369578,1707237056030,-500.0,0.00050547,60]
[313369579,1707237056039,-500.0,0.00050547,60]
[313369580,1707237056049,-500.0,0.00050547,60]
[313369581,1707237056058,-1000.0,0.00050547,7]
[313369582,1707237056068,-500.0,0.00050547,60]
[313369583,1707237056078,-500.0,0.00050547,60]
[313369584,1707237056087,-500.0,0.00050547,60]
[313369585,1707237056097,-500.0,0.00050547,60]
[313369586,1707237056107,-500.0,0.00050547,60]
[313369587,1707237056117,-500.0,0.00050547,60]
[313369588,1707237056127,-684.92,0.00050547,7]
[313369589,1707237056137,-500.0,0.00050547,60]
[313369590,1707237056147,-500.0,0.00050547,60]
[313369591,1707237056157,-500.0,0.00050547,60]
[313369592,1707237056167,-500.0,0.00050547,60]
[313369593,1707237056178,-500.0,0.00050547,60]
[313369594,1707237056187,-500.0,0.00050547,60]
[313369595,1707237056197,-231.47218083,0.00050547,60]
[313369596,1707237056206,-500.0,0.00050547,60]
[313369597,1707237056216,-500.0,0.00050547,60]
[313369598,1707237056226,-500.0,0.00050547,60]
[313369599,1707237056241,-500.0,0.00050547,60]
[313369600,1707237056250,-605.06905324,0.00050547,60]
[313369601,1707237056259,-500.0,0.00050547,60]
[313369602,1707237056269,-2236.7,0.00050547,60]
[313369603,1707237056279,-500.0,0.00050547,60]
[313369604,1707237056288,-500.0,0.00050547,60]
[313369605,1707237056298,-500.0,0.00050547,60]
[313369606,1707237056308,-965.48,0.00050547,60]
[313369607,1707237056317,-500.0,0.00050547,60]
[313369608,1707237056327,-500.0,0.00050547,60]
[313369609,1707237056336,-500.0,0.00050547,7]
[313369610,1707237056346,-500.0,0.00050547,60]
[313369611,1707237056356,-500.0,0.00050547,60]
[313369612,1707237056365,-500.0,0.00050547,60]
[313369613,1707237056375,-500.0,0.00050547,60]
[313369614,1707237056385,-3061.75,0.00050547,5]
[313369615,1707237056394,-500.0,0.00050547,7]
[313369616,1707237056404,-500.0,0.00050547,60]
[313369617,1707237056413,-975.61,0.00050547,60]
[313369618,1707237056422,-500.0,0.00050547,60]
[313369619,1707237056432,-500.0,0.00050547,60]
[313369620,1707237056442,-500.0,0.00050547,60]
[313369621,1707237056451,-500.0,0.00050547,60]
[313369622,1707237056460,-691.91,0.00050547,60]
[313369623,1707237056471,-500.0,0.00050547,60]
[313369624,1707237056483,-500.0,0.00050547,60]
[313369625,1707237056492,-500.0,0.00050547,60]
[313369626,1707237056501,-500.0,0.00050547,60]
[313369627,1707237056511,-500.0,0.00050547,60]
[313369628,1707237056520,-500.0,0.00050547,60]
[313369629,1707237056529,-500.0,0.00050547,60]
[313369630,1707237056539,-643.59,0.00050547,60]
[313369631,1707237056548,-242.97855152,0.00050547,60]
[313369632,1707237056557,-1684.4,0.00050547,60]
[313369633,1707237056566,-500.0,0.00050547,60]
[313369634,1707237056575,-500.0,0.00050547,60]
[313369635,1707237056585,-500.0,0.00050547,60]
[313369636,1707237056594,-500.0,0.00050547,60]
[313369637,1707237056603,-500.0,0.00050547,60]
[313369638,1707237056612,-466.1,0.00050547,60]
[313369639,1707237056621,-500.0,0.00050547,60]
[313369640,1707237056631,-500.0,0.00050547,60]
[313369641,1707237056642,-456.56072919,0.00050547,60]
[313369642,1707237056652,-519.31850496,0.00050547,60]
[313369643,1707237056663,-500.0,0.00050547,60]
[313369644,1707237056673,-500.0,0.00050547,60]
[313369645,1707237056683,-500.0,0.00050547,60]
[313369646,1707237056693,-500.0,0.00050547,60]
[313369647,1707237056703,-500.0,0.00050547,60]
[313369648,1707237056712,-515.18124501,0.00050547,60]
[313369649,1707237056722,-390.53740354,0.00050547,60]
[313369650,1707237056737,-500.0,0.00050547,60]
[313369651,1707237056746,-600.33438678,0.00050547,60]
[313369652,1707237056756,-500.0,0.00050547,60]
[313369653,1707237056766,-500.0,0.00050547,60]
[313369654,1707237056777,-500.0,0.00050547,60]
[313369655,1707237056786,-500.0,0.00050547,60]
[313369656,1707237056795,-457.30331268,0.00050547,60]
[313369657,1707237056807,-247.13910038,0.00050547,60]